[Event "Festival Groningen-A 2024"]
[Site "Groningen"]
[Date "2024.12.29"]
[Round "8.1"]
[White "De Winter, Arthur"]
[Black "Narayanan S L"]
[Result "1/2-1/2"]
[ECO "B90"]
[WhiteElo "2446"]
[BlackElo "2647"]
[Annotator "TA"]
[PlyCount "52"]
[EventDate "2024.12.21"]
[EventType "swiss"]
[EventCountry "NED"]
[SourceTitle "playchess.com"]
[Source "ChessBase"]
[SourceQuality "1"]
[TimeControl "40/5400+30:1800+30"]

{[%evp 21,52,16,29,32,25,23,22,7,35,0,0,0,0,0,0,0,0,-30,-48,-71,-18,-54,-26,-33,-40,-20,-16,-27,-9,-10,0,0,0]} 1. e4 {[%emt 0:00:04]} c5 {[%emt 0:00:04]} 2. Nf3 {[%emt 0:00:05]} d6 {[%emt 0:00:04]} 3. d4 {[%emt 0:00:04]} cxd4 {[%emt 0:00:04]} 4. Nxd4 {[%emt 0:00:03]} Nf6 {[%emt 0:00:06]} 5. Nc3 {[%emt 0:00:04]} a6 {[%emt 0:00:04]} 6. f3 {[%emt 0:00:10]} e5 {[%emt 0:00:15]} 7. Nb3 {[%emt 0:00:03]} Be6 {[%emt 0:00:10]} 8. Be3 {[%emt 0:00:06]} Be7 {[%emt 0:00:05]} 9. Qd2 {[%emt 0:00:08]} h5 {[%emt 0:00:05]} 10. O-O-O {[%emt 0:00:57]} Nbd7 {[%emt 0:00:08]} 11. Kb1 {[%emt 0:01:05]} Rc8 {[%emt 0:00:29]} 12. f4 {[%emt 0:02:44]} b5 {[%emt 0:00:32]} 13. h3 {[%emt 0:00:55]} Qc7 {[%emt 0:05:18]} 14. Bd3 {[%emt 0:00:39]} Nb6 {[%emt 0:09:47]} 15. fxe5 {[%emt 0:09:52]} (15. Bxb6 {seems wilder.} Qxb6 16. Rhe1 O-O 17. fxe5 dxe5 18. Nd5) 15... dxe5 {[%emt 0:00:06]} 16. Bxb6 {[%emt 0:00:16]} Qxb6 {[%emt 0:00:07]} 17. Nd5 $1 {[%emt 0:00:03]} Nxd5 {[%emt 0:19:17]} 18. exd5 {[%emt 0:00:14]} Bxd5 {[%emt 0:00:07]} 19. Rhe1 {[%emt 0:11:32]} (19. Bxb5+ $5 Bc6 20. Bd3 $11 (20. Bxc6+ Qxc6 21. Rhe1 Bf6 $11)) 19... Qc7 {[%emt 0:04:27]} 20. Qe2 {[%emt 0:17:06][%cal Od3b5]} Be6 {[%emt 0:03:11]} (20... Kf8 $17 21. Rf1 Rd8) 21. Nd2 {[%emt 0:05:11][%cal Od2f3]} (21. Qxe5 {simplifies} Qxe5 22. Rxe5 Bf6 23. Re2) 21... Kf8 {[%emt 0:15:04]} 22. Qxe5 {[%emt 0:01:50]} Qxe5 {[%emt 0:00:18]} 23. Rxe5 {[%emt 0:00:03]} Bf6 {[%emt 0:00:58] A strong pair of Bishops.} 24. Re2 {[%emt 0:00:47]} h4 {[%emt 0:00:28]} 25. Rf1 {[%emt 0:07:36]} Rh5 {[%emt 0:00:46]} 26. Ne4 {[%emt 0:00:34]} Be5 {[%emt 0:13:27]} 1/2-1/2

[Event "Festival Groningen-A 2024"]
[Site "Groningen"]
[Date "2024.12.29"]
[Round "8.2"]
[White "Beerdsen, Thomas"]
[Black "Schoppen, Casper"]
[Result "1-0"]
[ECO "B31"]
[WhiteElo "2502"]
[BlackElo "2539"]
[Annotator "TA"]
[PlyCount "101"]
[EventDate "2024.12.21"]
[EventType "swiss"]
[EventCountry "NED"]
[SourceTitle "playchess.com"]
[Source "ChessBase"]
[SourceQuality "1"]
[TimeControl "40/5400+30:1800+30"]

{[%evp 36,101,0,18,46,14,80,93,139,125,120,108,126,97,95,104,104,68,88,94,86,116,106,105,176,14,18,0,0,0,31,52,52,54,49,57,61,53,49,65,54,69,58,77,269,0,0,0,261,293,297,290,316,316,308,299,314,277,618,676,1148,1211,1531,1420,29977,29978,29982,29983]} 1. e4 {[%emt 0:03:42]} c5 {[%emt 0:00:41]} 2. Nf3 {[%emt 0:00:07]} Nc6 {[%emt 0:00:17]} 3. Bb5 {[%emt 0:00:08]} g6 {[%emt 0:00:28]} 4. O-O {[%emt 0:00:14]} Bg7 {[%emt 0:00:04]} 5. c3 {[%emt 0:00:05]} Nf6 {[%emt 0:00:27]} 6. Re1 {[%emt 0:00:08]} O-O {[%emt 0:00:09]} 7. d4 {[%emt 0:00:06]} d5 {[%emt 0:00:12]} 8. e5 {[%emt 0:00:32]} Ne4 {[%emt 0:00:05]} 9. Be3 {[%emt 0:02:13]} Qb6 {[%emt 0:00:20]} 10. a4 {[%emt 0:18:52]} cxd4 {[%emt 0:16:20]} 11. Nxd4 {[%emt 0:15:49]} Qc7 {[%emt 0:05:37]} 12. f3 {[%emt 0:10:23]} Nc5 {[%emt 0:01:22]} 13. Nxc6 {[%emt 0:01:06]} bxc6 {[%emt 0:00:07]} 14. Bxc5 {[%emt 0:00:10]} cxb5 {[%emt 0:00:06]} 15. Qxd5 {[%emt 0:04:11]} Be6 {[%emt 0:15:24]} 16. Qd4 {[%emt 0:01:25]} Rfd8 {[%emt 0:03:03]} 17. Qe3 {[%emt 0:00:18]} Bh6 {[%emt 0:08:11]} 18. Qf2 {[%emt 0:02:39]} Rd5 {[%emt 0:02:57]} 19. Bd4 {[%emt 0:01:01]} a5 {[%emt 0:09:11]} 20. Nd2 {[%emt 0:07:14]} Bg7 {[%emt 0:01:30]} (20... Bf4 $11) 21. f4 $16 {[%emt 0:05:33]} Qc6 {[%emt 0:03:02]} (21... Bf8 $142) 22. b3 $1 $16 {[%emt 0:02:50]} bxa4 {[%emt 0:08:31]} 23. c4 {[%emt 0:00:40]} (23. bxa4 $6 Rdd8 $14) 23... Rdd8 {[%emt 0:06:24]} 24. Rxa4 {[%emt 0:00:15]} Qd7 {[%emt 0:00:11]} 25. Bc3 {[%emt 0:07:13]} Qd3 {[%emt 0:00:55]} 26. Rc1 {[%emt 0:03:39]} (26. Bxa5 $6 Rxa5 27. Rxa5 Qxd2 28. Qxd2 Rxd2 $11) 26... Bh6 {[%emt 0:04:58]} 27. Rxa5 {[%emt 0:06:13]} Rxa5 {[%emt 0:02:52]} 28. Bxa5 {[%emt 0:00:04]} Rd4 {[%emt 0:00:17]} 29. g3 $1 {[%emt 0:00:12]} g5 {[%emt 0:01:09] [#]} (29... Rd7 $16 {keeps fighting.}) 30. Bc3 $2 {[%emt 0:00:46]} (30. Nf3 $1 $18 {[%cal Rf3d4]} Re4 31. fxg5) 30... Rd8 $11 {[%emt 0:00:24]} 31. Nf1 {[%emt 0:02:09]} Bh3 {[%emt 0:03:42]} 32. Bb4 {[%emt 0:03:09]} Qxb3 {[%emt 0:03:54]} 33. Bxe7 {[%emt 0:00:52]} Rd1 {[%emt 0:00:17]} 34. Rxd1 {[%emt 0:00:36]} Qxd1 {[%emt 0:00:06]} 35. fxg5 {[%emt 0:00:20]} (35. Bxg5 Bf8 $19) 35... Bg7 {[%emt 0:00:07]} 36. Bd6 {[%emt 0:00:53]} h6 {[%emt 0:00:46]} 37. c5 {[%emt 0:01:55]} hxg5 {[%emt 0:03:12]} ({Don't go for} 37... Qxf1+ $2 38. Qxf1 Bxf1 39. Kxf1 $18) 38. c6 {[%emt 0:00:05]} Qd5 {[%emt 0:00:43]} 39. c7 {[%emt 0:00:38]} Bc8 $2 {[%emt 0:01:20]} (39... Qd1 $16) 40. Qg2 $2 {[%emt 0:00:51]} ({White has to play} 40. Qd2 $18 Qc6 41. Qxg5) 40... Qd4+ $11 {[%emt 0:00:13]} 41. Qf2 $2 {[%emt 0:06:35][%mdl 8192]} (41. Kh1 $11 Bxe5 42. Bxe5 (42. Qa8 Qxd6 43. Qxc8+ Kg7 $11) 42... Qxe5 43. Qd2 Bb7+ 44. Kg1 Qxc7 45. Qxg5+ Kf8 46. Qh6+ Kg8 47. Qg5+) 41... Qd5 $18 {[%emt 0:02:53]} 42. Qd2 {[%emt 0:10:47]} Qc6 {[%emt 0:02:31]} 43. Qxg5 {[%emt 0:02:36]} Bb7 {[%emt 0:00:13] [#]} 44. Kf2 $1 {[%emt 0:00:25]} (44. Qd8+ Kh7 45. Kf2 (45. Qh4+ $2 Bh6 $19) 45... Qf3+ 46. Ke1 Ba6 47. Qh4+ (47. c8=B $2 Qe2#) 47... Bh6 $19) 44... Qc2+ {[%emt 0:00:58]} 45. Nd2 {[%emt 0:01:06]} Kh7 {[%emt 0:01:49]} 46. Qf4 {[%emt 0:02:11]} Kg8 $2 {[%emt 0:02:35]} (46... f6 47. Qb4 (47. exf6 Bh6 $16) 47... f5) 47. g4 $18 {[%emt 0:00:52]} Qc6 {[%emt 0:00:56]} 48. Nf3 {[%emt 0:00:39]} Qc2+ {[%emt 0:01:02]} 49. Kg3 {[%emt 0:00:16]} Qc3 {[%emt 0:00:39]} 50. Qf5 {[%emt 0:00:54]} Qc6 {[%emt 0:02:30]} 51. Kh4 {[%emt 0:01:23]} 1-0

[Event "Festival Groningen-A 2024"]
[Site "Groningen"]
[Date "2024.12.29"]
[Round "8.3"]
[White "Elgersma, Onno"]
[Black "Maatman, Nick"]
[Result "0-1"]
[ECO "C42"]
[WhiteElo "2322"]
[BlackElo "2375"]
[Annotator "TA"]
[PlyCount "70"]
[EventDate "2024.12.21"]
[EventType "swiss"]
[EventCountry "NED"]
[SourceTitle "playchess.com"]
[Source "ChessBase"]
[SourceQuality "1"]
[TimeControl "40/5400+30:1800+30"]

{[%evp 13,70,19,13,17,11,17,17,0,12,0,16,0,10,0,4,0,62,33,22,0,7,-13,0,-31,-43,-34,-41,-108,-108,-101,-105,-101,-112,-110,-111,-123,-127,-144,-145,-162,-162,-189,-189,-189,-195,-287,-249,-535,-395,-1459,-1459,-6643,-6626,-6643,-6636,-5760,-5756,-29980,-29975]} 1. e4 {[%emt 0:00:04]} e5 {[%emt 0:05:22]} 2. Nf3 {[%emt 0:00:25]} Nf6 {[%emt 0:00:02]} 3. Nxe5 {[%emt 0:02:13]} d6 {[%emt 0:00:10]} 4. Nf3 {[%emt 0:00:43]} Nxe4 {[%emt 0:00:05]} 5. Nc3 {[%emt 0:02:57]} Nxc3 {[%emt 0:00:14]} 6. dxc3 {[%emt 0:00:04]} Be7 {[%emt 0:00:04]} 7. Be3 {[%emt 0:00:10]} Nd7 {[%emt 0:00:09]} 8. Qd2 {[%emt 0:00:13]} O-O {[%emt 0:01:12]} 9. O-O-O {[%emt 0:00:12]} Nf6 {[%emt 0:00:16]} 10. h4 {[%emt 0:03:33]} Bg4 {[%emt 0:05:08]} 11. Be2 {[%emt 0:15:48]} Qd7 {[%emt 0:13:36]} 12. Ng5 {[%emt 0:06:10]} Bxe2 {[%emt 0:01:15]} 13. Qxe2 {[%emt 0:02:31]} h6 {[%emt 0:33:34][%cal Of8e8]} 14. Qd3 {[%emt 0:15:37][%cal Oe3d4]} g6 {[%emt 0:02:54]} (14... hxg5 $2 15. hxg5 g6 16. gxf6 Bxf6 17. Bd4 $18) (14... Rfe8 $11) 15. Ne4 {[%emt 0:05:45]} (15. f3 $5) 15... h5 {[%emt 0:05:12]} 16. Bh6 {[%emt 0:05:31]} (16. Kb1 {simplifies} Nxe4 17. Qxe4 Bf6 18. Rhg1) 16... Rfe8 {[%emt 0:02:18] aiming for ...Nxe4.} 17. Qd4 {[%emt 0:00:18]} Qf5 {[%emt 0:03:43]} 18. Rhe1 {[%emt 0:07:30]} c5 $1 $36 {[%emt 0:02:17][%mdl 2048] Black fights for an advantage.} 19. Nxf6+ {[%emt 0:02:44]} Bxf6 {[%emt 0:00:05]} 20. Rxe8+ {[%emt 0:12:53]} ({Better is} 20. Qf4 $1 $15) 20... Rxe8 $17 {[%emt 0:00:02]} 21. Qf4 {[%emt 0:05:50]} Qxf4+ {[%emt 0:01:11]} 22. Bxf4 {[%emt 0:00:01]} Bxh4 {[%emt 0:01:28][%mdl 4096] Endgame KRB-KRB. Black is a pawn up.} 23. g3 {[%emt 0:00:35] [#]} Be7 $1 {[%emt 0:01:26]} 24. b4 {[%emt 0:04:06]} Rd8 {[%emt 0:05:21]} 25. Rd5 {[%emt 0:01:53]} f5 {[%emt 0:01:00]} 26. Kd2 {[%emt 0:03:36]} Kf7 {[%emt 0:00:13]} 27. bxc5 {[%emt 0:02:01]} dxc5 {[%emt 0:00:02]} 28. Rxd8 {[%emt 0:00:18]} Bxd8 $19 {[%emt 0:00:01] KB-KB. Black is a pawn up.} 29. Kd3 {[%emt 0:00:13]} (29. c4 {might work better.}) 29... Ke6 {[%emt 0:02:59]} 30. Kc4 $2 {[%emt 0:00:04]} (30. Be3) 30... Be7 {[%emt 0:01:04]} 31. Kb5 $2 {[%emt 0:00:28]} (31. Bd2) 31... g5 {[%emt 0:00:38]} 32. Bb8 {[%emt 0:00:07]} h4 {[%emt 0:00:15]} 33. gxh4 {[%emt 0:00:16]} gxh4 {[%emt 0:00:02] ( -> ...Bd6)} 34. Bh2 {[%emt 0:01:43]} Bd6 {[%emt 0:00:30]} 35. f4 {[%emt 0:00:41]} Kd5 {[%emt 0:00:06]} 0-1

[Event "Festival Groningen-A 2024"]
[Site "Groningen"]
[Date "2024.12.29"]
[Round "8.4"]
[White "Pham, Khoi"]
[Black "Manish Anto Cristiano F"]
[Result "0-1"]
[ECO "E04"]
[WhiteElo "2285"]
[BlackElo "2296"]
[Annotator "RC"]
[PlyCount "90"]
[EventDate "2024.12.21"]
[EventType "swiss"]
[EventCountry "NED"]
[SourceTitle "playchess.com"]
[Source "ChessBase"]
[SourceQuality "1"]
[TimeControl "40/5400+30:1800+30"]

1. d4 {[%emt 0:00:02]} Nf6 {[%emt 0:02:41]} 2. c4 {[%emt 0:00:05]} e6 {[%emt 0:00:05]} 3. g3 {[%emt 0:00:18]} d5 {[%emt 0:01:36]} 4. Bg2 {[%emt 0:00:07]} dxc4 {[%emt 0:00:25]} 5. Nf3 {[%emt 0:00:22]} Nc6 {[%emt 0:01:13]} 6. Qa4 {[%emt 0:01:04]} Bb4+ {[%emt 0:00:26]} 7. Bd2 {[%emt 0:00:26]} Nd5 {[%emt 0:00:29]} 8. Qc2 {[%emt 0:00:49]} Nb6 {[%emt 0:03:07]} 9. Bxb4 {[%emt 0:02:10]} Nxb4 {[%emt 0:00:10]} 10. Qc3 {[%emt 0:00:19]} Qe7 {[%emt 0:04:02]} 11. Na3 {[%emt 0:03:06]} N4d5 {[%emt 0:03:23]} 12. Qa5 {[%emt 0:01:05]} O-O {[%emt 0:01:02]} 13. O-O {[%emt 0:06:29]} Bd7 {[%emt 0:11:16]} 14. Ne5 {[%emt 0:07:30]} Rfc8 {[%emt 0:03:58]} 15. Qc5 {[%emt 0:09:13]} Qd8 {[%emt 0:14:53]} 16. Naxc4 {[%emt 0:03:14]} Nxc4 {[%emt 0:02:28]} 17. Qxc4 {[%emt 0:00:09]} Be8 {[%emt 0:00:21]} 18. Rfd1 {[%emt 0:03:05]} c6 {[%emt 0:01:33]} 19. Rac1 {[%emt 0:04:33]} Qe7 {[%emt 0:01:02]} 20. Qc5 {[%emt 0:04:22]} Kf8 {[%emt 0:03:31]} 21. Qc2 {[%emt 0:05:35]} Kg8 {[%emt 0:01:13]} 22. Qb3 {[%emt 0:00:43]} Rd8 {[%emt 0:01:51]} 23. e4 {[%emt 0:05:03]} Nb6 {[%emt 0:02:01]} 24. a4 {[%emt 0:02:27]} c5 {[%emt 0:08:31]} 25. dxc5 {[%emt 0:01:38]} Nxa4 {[%emt 0:00:31]} 26. Rxd8 {[%emt 0:16:27]} Rxd8 {[%emt 0:00:21]} 27. Qa3 {[%emt 0:02:06]} b6 {[%emt 0:08:14]} 28. b4 {[%emt 0:04:30]} bxc5 {[%emt 0:00:50]} 29. bxc5 {[%emt 0:00:06]} Rc8 {[%emt 0:03:44]} 30. Rc4 {[%emt 0:02:12]} Rxc5 {[%emt 0:02:54]} 31. Nd3 {[%emt 0:01:34]} Rc7 {[%emt 0:01:54]} 32. Rxa4 {[%emt 0:00:11]} Bxa4 {[%emt 0:00:09]} 33. Qxa4 {[%emt 0:00:05]} Qd7 {[%emt 0:00:38]} 34. Qb3 {[%emt 0:01:36]} a5 {[%emt 0:01:56]} 35. Ne5 {[%emt 0:03:21]} a4 {[%emt 0:02:53]} 36. Qb4 {[%emt 0:01:21]} Rc1+ {[%emt 0:03:50]} 37. Bf1 {[%emt 0:00:05]} Qa7 {[%emt 0:00:24]} 38. Qb5 {[%emt 0:05:18]} Rc8 {[%emt 0:02:47]} 39. Bc4 {[%emt 0:01:46]} a3 {[%emt 0:04:43]} 40. Qb3 {[%emt 0:02:49]} Rb8 {[%emt 0:00:56]} 41. Qf3 {[%emt 0:03:58]} Qc7 {[%emt 0:04:51]} 42. Qh5 {[%emt 0:05:24]} Ra8 {[%emt 0:03:58]} 43. Ba2 {[%emt 0:01:29]} Ra5 {[%emt 0:03:51]} 44. f4 {[%emt 0:01:43]} Rb5 {[%emt 0:01:37]} 45. Bxe6 {[%emt 0:07:56]} Qb6+ {[%emt 0:00:10]} 0-1

[Event "Festival Groningen-A 2024"]
[Site "Groningen"]
[Date "2024.12.29"]
[Round "8.5"]
[White "Stijve, Theo"]
[Black "Van Foreest, Machteld"]
[Result "1-0"]
[ECO "C50"]
[WhiteElo "2396"]
[BlackElo "2309"]
[Annotator "TA"]
[PlyCount "85"]
[EventDate "2024.12.21"]
[EventType "swiss"]
[EventCountry "NED"]
[SourceTitle "playchess.com"]
[Source "ChessBase"]
[SourceQuality "1"]
[TimeControl "40/5400+30:1800+30"]

{[%evp 9,85,8,22,15,16,16,14,10,20,12,16,11,15,15,17,0,0,0,0,0,0,5,0,0,42,46,48,29,83,49,42,46,51,51,51,51,85,83,90,89,91,85,100,74,183,198,251,233,252,264,361,355,293,368,368,354,375,304,376,360,388,300,395,379,287,357,336,327,391,371,847,787,744,690,29964,29967,6199,5903]} 1. e4 {[%emt 0:00:04]} e5 {[%emt 0:00:31]} 2. Nf3 {[%emt 0:00:09]} Nc6 {[%emt 0:00:08]} 3. Bc4 {[%emt 0:00:14]} Bc5 {[%emt 0:00:19]} 4. Nc3 {[%emt 0:00:49]} Nf6 {[%emt 0:02:31]} 5. d3 {[%emt 0:00:14]} a6 {[%emt 0:02:15]} 6. a4 {[%emt 0:00:52][%cal Ba2a4,Ba4a5][%mdl 32]} d6 {[%emt 0:01:13]} 7. Nd5 {[%emt 0:07:10]} Nxd5 {[%emt 0:09:46]} 8. Bxd5 {[%emt 0:03:53] The position is equal.} h6 {[%emt 0:03:47]} 9. c3 {[%emt 0:03:52]} Qf6 {[%emt 0:03:11]} 10. b4 {[%emt 0:04:18]} Bb6 {[%emt 0:02:39]} 11. a5 {[%emt 0:08:20]} Ba7 {[%emt 0:00:17]} 12. Bxc6+ {[%emt 0:01:32]} bxc6 {[%emt 0:00:05]} 13. Be3 {[%emt 0:00:26]} Bg4 {[%emt 0:07:38]} 14. h3 {[%emt 0:16:10]} Bxf3 {[%emt 0:01:13]} 15. Qxf3 {[%emt 0:00:47]} Qxf3 {[%emt 0:00:14]} 16. gxf3 {[%emt 0:00:08]} g5 {[%emt 0:11:18]} 17. h4 {[%emt 0:08:04]} f6 {[%emt 0:02:05]} 18. Ke2 {[%emt 0:02:39]} (18. hxg5 {simplifies} Bxe3 19. fxe3 fxg5 20. Ra2) 18... Ke7 {[%emt 0:02:32]} (18... Bxe3 $11 19. fxe3 Kf7) 19. Rag1 {[%emt 0:02:33][%cal Rh4g5] hxg5 is the strong threat.} Bxe3 {[%emt 0:00:21]} 20. fxe3 $14 {[%emt 0:00:09][%cal Of3f4,Bf2e3,Be3d4][%mdl 4128] Endgame. KRR-KRR} Rag8 {[%emt 0:04:10]} 21. d4 {[%emt 0:12:35]} exd4 {[%emt 0:04:35]} 22. exd4 {[%emt 0:04:02]} c5 {[%emt 0:00:12]} 23. bxc5 {[%emt 0:04:02] White now steadily converts the win.} dxc5 {[%emt 0:00:05]} 24. Rb1 {[%emt 0:02:27]} (24. dxc5 $6 Ke6 $11) 24... Kd6 {[%emt 0:06:52]} 25. Ke3 {[%emt 0:04:49]} h5 {[%emt 0:03:16]} 26. Rb7 {[%emt 0:02:05] Black must now prevent Ra7. White is more active.} cxd4+ {[%emt 0:01:49]} (26... Ra8 $16) 27. cxd4 $18 {[%emt 0:00:11]} g4 {[%emt 0:00:27]} (27... gxh4 $142 28. Rc1 (28. Rxh4 Rg5 $16) 28... Rc8) 28. Ra7 {[%emt 0:01:07]} Rb8 {[%emt 0:08:21]} 29. Rxa6+ {[%emt 0:00:24]} Ke7 {[%emt 0:00:08]} 30. fxg4 {[%emt 0:02:10]} Rb3+ {[%emt 0:00:58]} 31. Kf4 {[%emt 0:01:12]} hxg4 {[%emt 0:00:06]} 32. Kxg4 {[%emt 0:02:42]} Rg8+ {[%emt 0:00:05]} 33. Kf4 {[%emt 0:00:09]} Rgg3 {[%emt 0:04:51]} 34. Rf1 {[%emt 0:02:40] Prevents Rbf3+.} Rh3 {[%emt 0:00:04]} 35. Kg4 {[%emt 0:00:46]} Rbg3+ {[%emt 0:00:16]} 36. Kf5 {[%emt 0:01:04]} Rxh4 {[%emt 0:01:50][%csl Gf6][%cal Rg3g5] [#]} 37. Re6+ {[%emt 0:00:24]} ({Don't take} 37. Rxf6 $6 Rh5+ 38. Kf4 Ra3 $18) 37... Kd7 {[%emt 0:00:03]} 38. Rxf6 {[%emt 0:00:49]} (38. Kxf6 $2 {perishes.} Rh6+ 39. Kf5 Rxe6 $19) 38... Rg7 {[%emt 0:08:30]} 39. d5 {[%emt 0:01:44] Hoping for a6.} Rhg4 $2 {[%emt 0:02:17]} (39... Re7 40. Rf4 Rh5+ 41. Kg6 Rh1) 40. Ke5 {[%emt 0:00:34]} Re7+ {[%emt 0:06:49]} 41. Re6 {[%emt 0:30:43] [#] And now Rxe7+ would win.} Rg2 {[%emt 0:30:32]} 42. Rxe7+ {[%emt 0:00:00]} Kxe7 {[%emt 0:00:00]} 43. Ra1 {[%emt 0:00:00] Weighted Error Value: White=0.08 (flawless) /Black=0.41.  Mistake:       	---       	Black=4      Inaccurate:     	White=1     	Black=3      OK:         	White=12    	Black=14     Best:        	White=5     	Black=1} 1-0

[Event "Festival Groningen-A 2024"]
[Site "Groningen"]
[Date "2024.12.29"]
[Round "8.6"]
[White "Poetsch, Hagen"]
[Black "Kollen, Zyon"]
[Result "1/2-1/2"]
[ECO "C08"]
[WhiteElo "2491"]
[BlackElo "2344"]
[Annotator "TA"]
[PlyCount "47"]
[EventDate "2024.12.21"]
[EventType "swiss"]
[EventCountry "NED"]
[SourceTitle "playchess.com"]
[Source "ChessBase"]
[SourceQuality "1"]
[TimeControl "40/5400+30:1800+30"]

{[%evp 23,47,13,18,25,24,31,31,30,55,45,50,41,56,29,41,29,33,16,25,19,21,35,13,5,31,28]} 1. e4 {[%emt 0:00:02]} e6 {[%emt 0:00:05]} 2. d4 {[%emt 0:00:04]} d5 {[%emt 0:00:04]} 3. Nd2 {[%emt 0:00:07]} c5 {[%emt 0:02:50]} 4. Ngf3 {[%emt 0:00:07]} Nf6 {[%emt 0:05:42]} 5. exd5 {[%emt 0:00:36]} exd5 {[%emt 0:06:23]} 6. Bb5+ {[%emt 0:00:09]} Bd7 {[%emt 0:03:29]} 7. Bxd7+ {[%emt 0:00:46]} Nbxd7 {[%emt 0:00:35][%cal Bb8d7,Bd7c5,Bc5e4][%mdl 32]} 8. O-O {[%emt 0:00:07]} Be7 {[%emt 0:01:10]} 9. dxc5 {[%emt 0:00:30]} Nxc5 {[%emt 0:00:25]} 10. Nb3 {[%emt 0:02:19]} Nce4 {[%emt 0:00:34]} 11. Nfd4 {[%emt 0:00:37]} Qd7 {[%emt 0:05:03]} 12. Qf3 {[%emt 0:06:15]} O-O {[%emt 0:03:17]} 13. Nf5 {[%emt 0:00:12]} Rfc8 {[%emt 0:08:52]} 14. Nxe7+ {[%emt 0:01:38]} Qxe7 {[%emt 0:00:04]} 15. c3 {[%emt 0:00:55]} b5 {[%emt 0:01:32]} 16. Qe2 {[%emt 0:05:01][%cal Of2f3] [#] And now f3! would win.} Qb7 {[%emt 0:03:28]} 17. f3 {[%emt 0:04:49]} Nd6 {[%emt 0:00:16]} 18. Be3 {[%emt 0:08:58]} a5 {[%emt 0:08:41][%cal Ba7a5,Ba5a4][%mdl 32]} 19. Bd4 {[%emt 0:02:05]} Nd7 {[%emt 0:01:04]} 20. Qf2 {[%emt 0:13:29][%cal Od4g7] next Bxg7! is good for White.} a4 {[%emt 0:07:20]} 21. Nc5 {[%emt 0:04:22]} Nxc5 {[%emt 0:00:36]} 22. Bxc5 {[%emt 0:00:05]} Nc4 {[%emt 0:04:10][%cal Oc4b2]} 23. Bd4 {[%emt 0:01:23]} Qc6 {[%emt 0:05:33]} 24. Rfe1 {[%emt 0:10:42] Weighted Error Value: White=0.07 (flawless) /Black=0.07 (flawless) .  Inaccurate:     	White=1     	Black=1      OK:         	White=3     	Black=2} 1/2-1/2

[Event "Festival Groningen-A 2024"]
[Site "Groningen"]
[Date "2024.12.29"]
[Round "8.7"]
[White "Mitusov, Semen"]
[Black "Laxman, R.R."]
[Result "1-0"]
[ECO "C54"]
[WhiteElo "2465"]
[BlackElo "2310"]
[Annotator "TA"]
[PlyCount "99"]
[EventDate "2024.12.21"]
[EventType "swiss"]
[EventCountry "NED"]
[SourceTitle "playchess.com"]
[Source "ChessBase"]
[SourceQuality "1"]
[TimeControl "40/5400+30:1800+30"]

{[%evp 12,99,19,6,12,10,14,5,23,14,17,0,0,17,33,39,42,33,39,22,27,0,54,48,72,51,51,52,63,11,85,81,94,85,85,89,95,95,89,88,108,100,110,98,104,99,127,122,145,79,85,77,72,75,115,120,127,128,127,112,116,115,133,113,104,106,122,117,186,124,172,175,161,132,138,128,122,69,64,70,72,65,29987,29988,29987,29988,29997,29998,29998,29999]} 1. e4 {[%emt 0:00:03]} e5 {[%emt 0:00:05]} 2. Nf3 {[%emt 0:00:04]} Nc6 {[%emt 0:00:04]} 3. Bc4 {[%emt 0:00:07]} Bc5 {[%emt 0:00:06]} 4. c3 {[%emt 0:00:05]} Nf6 {[%emt 0:00:05]} 5. d3 {[%emt 0:00:03]} d6 {[%emt 0:01:06]} 6. O-O {[%emt 0:00:36]} h6 {[%emt 0:04:04]} 7. Nbd2 {[%emt 0:01:48]} (7. b4 $5 Bb6 $8 8. Nbd2 $15) 7... a5 {[%emt 0:01:16]} 8. Re1 {[%emt 0:01:22]} O-O {[%emt 0:00:20]} 9. Nf1 {[%emt 0:00:36]} Bb6 {[%emt 0:02:17]} 10. Ng3 {[%emt 0:04:38]} Ne7 {[%emt 0:03:16]} 11. d4 {[%emt 0:01:54]} Ng6 {[%emt 0:02:37]} 12. h3 {[%emt 0:01:49]} c6 {[%emt 0:04:06]} 13. Bb3 {[%emt 0:01:41]} Be6 {[%emt 0:00:34]} 14. Bc2 {[%emt 0:06:21]} Bc7 {[%emt 0:02:44]} 15. Be3 {[%emt 0:01:51]} Re8 {[%emt 0:01:09]} 16. Qd2 {[%emt 0:05:07]} Kh7 {[%emt 0:00:42]} (16... a4 $11) 17. a4 $14 {[%emt 0:01:45]} Qe7 {[%emt 0:03:06]} 18. Rad1 {[%emt 0:04:33]} Rad8 {[%emt 0:00:14]} 19. Qc1 {[%emt 0:00:22]} Qf8 {[%emt 0:00:16]} 20. Nf5 {[%emt 0:06:19]} (20. b3 $14) 20... Bxf5 {[%emt 0:00:34]} (20... Kh8 $11 {remains equal.}) 21. exf5 $16 {[%emt 0:00:33]} Ne7 {[%emt 0:00:03]} 22. dxe5 {[%emt 0:06:33]} dxe5 {[%emt 0:02:22]} 23. Rxd8 {[%emt 0:01:01]} Rxd8 {[%emt 0:00:02]} 24. Bc5 {[%emt 0:01:14]} b6 {[%emt 0:03:36]} 25. Ba3 {[%emt 0:01:39] White is more active.} e4 {[%emt 0:02:31]} 26. Bxe4 {[%emt 0:12:11]} Nxe4 {[%emt 0:00:31]} 27. Rxe4 {[%emt 0:02:48]} c5 {[%emt 0:00:07]} 28. Qc2 {[%emt 0:03:26][%cal Oe4e7] Rxe7! would now be deadly.} Nd5 {[%emt 0:02:02]} (28... Nxf5 $2 29. g4 $18) 29. b3 {[%emt 0:04:23]} Nf6 {[%emt 0:00:10]} 30. Re1 {[%emt 0:00:55]} (30. Re2 $142 $1) 30... Qd6 {[%emt 0:00:15]} 31. Bb2 {[%emt 0:04:34][%cal Ba3b2,Bb2c3,Bc3d2][%mdl 32]} c4 {[%emt 0:00:46]} 32. bxc4 {[%emt 0:01:32]} Qf4 {[%emt 0:00:28] [#]} 33. c5 $1 {[%emt 0:01:54]} bxc5 {[%emt 0:00:09]} 34. c4 {[%emt 0:00:11]} Qd6 {[%emt 0:01:34]} 35. Kf1 {[%emt 0:07:01]} Kg8 {[%emt 0:00:15]} 36. Bc3 {[%emt 0:03:19]} Qa6 {[%emt 0:03:45]} 37. Bd2 {[%emt 0:00:35]} Qc6 {[%emt 0:00:35]} 38. Kg1 {[%emt 0:04:00]} Kf8 {[%emt 0:02:47]} 39. Bc3 {[%emt 0:02:35]} Qa6 {[%emt 0:00:30]} (39... Kg8 $16 {was necessary.} 40. Bxf6 Qxf6) 40. Ne5 {[%emt 0:00:30]} (40. Bxf6 $18 Qxf6 41. Qe4) 40... Qd6 {[%emt 0:00:30]} (40... Kg8 $16 41. Re3 Qd6) 41. f4 $18 {[%emt 0:30:30]} Kg8 {[%emt 0:30:30]} 42. Qe2 {[%emt 0:00:30] Inhibits Nh5.} Qb6 {[%emt 0:00:30]} 43. Ng4 {[%emt 0:00:30][%cal Be5g4,Bg4h6,Bh6f7][%mdl 32]} Nh5 {[%emt 0:00:30] [#]} 44. f6 $1 {[%emt 0:00:30][%mdl 512]} Nxf4 $14 {[%emt 0:00:30]} 45. Qe4 $1 {[%emt 0:00:30]} Qb3 {[%emt 0:00:30][%csl LRa4,LRc3] [#]} 46. Qf3 $1 $40 {[%emt 0:09:02][%mdl 128] White has some attack.} Nd3 $2 {[%emt 0:00:00][%mdl 8192] [#]} (46... h5 $14 47. Nh6+ gxh6 48. Qg3+ Ng6 49. Qxc7 Rf8) 47. Nxh6+ $1 {[%emt 0:00:00][%mdl 512]} Kh7 {[%emt 0:00:00]} 48. Nxf7 {[%emt 0:00:00]} Qxc3 {[%emt 0:00:00]} 49. Qh5+ {[%emt 0:00:00]} Kg8 {[%emt 0:00:00]} 50. Qh8+ {[%emt 0:00:00]} 1-0